[Event "Titled Tuesday Blitz August 15 Late 2023"]
[White "Zampronha, Wladimir Camilo"]
[Black "Grinev, Valeriy"]
[WhiteFideId "2103087"]
[BlackFideId "14117517"]
[WhiteElo "2271"]
[BlackElo "2500"]
[Result "0-1"]
[Round "11"]
[TimeControl "180+1"]
[Date "2023.08.15"]
[WhiteClock "0:01:01"]
[BlackClock "0:01:30"]
[Board "73"]

1. e4 {[%clk 0:03:00]}  c5 {[%clk 0:02:56]} 2. Nf3 {[%clk 0:03:01]}  Nc6 {[%clk 0:02:56]} 3. d4 {[%clk 0:03:01]}  cxd4 {[%clk 0:02:57]} 4. Nxd4 {[%clk 0:03:02]}  e5 {[%clk 0:02:58]} 5. Nb5 {[%clk 0:03:01]}  d6 {[%clk 0:02:57]} 6. N1c3 {[%clk 0:03:01]}  a6 {[%clk 0:02:58]} 7. Na3 {[%clk 0:03:01]}  b5 {[%clk 0:02:59]} 8. Nd5 {[%clk 0:03:01]}  Nf6 {[%clk 0:03:00]} 9. Bg5 {[%clk 0:02:52]}  Be7 {[%clk 0:02:59]} 10. Bxf6 {[%clk 0:02:51]}  Bxf6 {[%clk 0:03:00]} 11. c3 {[%clk 0:02:50]}  Bg5 {[%clk 0:03:00]} 12. Nc2 {[%clk 0:02:50]}  O-O {[%clk 0:02:59]} 13. a4 {[%clk 0:02:50]}  bxa4 {[%clk 0:02:59]} 14. Rxa4 {[%clk 0:02:50]}  a5 {[%clk 0:03:00]} 15. Bb5 {[%clk 0:02:49]}  Ne7 {[%clk 0:02:57]} 16. Nce3 {[%clk 0:02:46]}  Bxe3 {[%clk 0:02:55]} 17. Nxe3 {[%clk 0:02:45]}  Bb7 {[%clk 0:02:52]} 18. Qd3 {[%clk 0:02:35]}  d5 {[%clk 0:02:45]} 19. exd5 {[%clk 0:02:28]}  Nxd5 {[%clk 0:02:46]} 20. Nxd5 {[%clk 0:02:27]}  Qxd5 {[%clk 0:02:40]} 21. Qxd5 {[%clk 0:02:26]}  Bxd5 {[%clk 0:02:41]} 22. O-O {[%clk 0:02:21]}  Bb3 {[%clk 0:02:39]} 23. Re4 {[%clk 0:02:16]}  f6 {[%clk 0:02:37]} 24. Bc4+ {[%clk 0:01:59]}  Bxc4 {[%clk 0:02:35]} 25. Rxc4 {[%clk 0:02:00]}  Rfb8 {[%clk 0:02:33]} 26. b4 {[%clk 0:01:58]}  axb4 {[%clk 0:02:34]} 27. Rxb4 {[%clk 0:01:57]}  Rc8 {[%clk 0:02:26]} 28. Rb3 {[%clk 0:01:57]}  Ra2 {[%clk 0:02:21]} 29. Rd1 {[%clk 0:01:51]}  Rc2 {[%clk 0:02:16]} 30. g3 {[%clk 0:01:34]}  R2xc3 {[%clk 0:02:15]} 31. Rb7 {[%clk 0:01:28]}  R3c7 {[%clk 0:02:12]} 32. Rd7 {[%clk 0:01:28]}  Rxb7 {[%clk 0:02:10]} 33. Rxb7 {[%clk 0:01:28]}  h5 {[%clk 0:02:08]} 34. h4 {[%clk 0:01:28]}  Kh7 {[%clk 0:02:08]} 35. Kh2 {[%clk 0:01:28]}  Kg6 {[%clk 0:02:09]} 36. Ra7 {[%clk 0:01:28]}  Rc2 {[%clk 0:02:09]} 37. Kg2 {[%clk 0:01:28]}  Rb2 {[%clk 0:02:05]} 38. Re7 {[%clk 0:01:28]}  Rb3 {[%clk 0:02:00]} 39. Re8 {[%clk 0:01:26]}  Kf5 {[%clk 0:01:57]} 40. Rh8 {[%clk 0:01:25]}  g6 {[%clk 0:01:57]} 41. Rf8 {[%clk 0:01:25]}  Rb2 {[%clk 0:01:53]} 42. Re8 {[%clk 0:01:24]}  Rb5 {[%clk 0:01:53]} 43. Re7 {[%clk 0:01:23]}  e4 {[%clk 0:01:53]} 44. Re8 {[%clk 0:01:23]}  Re5 {[%clk 0:01:53]} 45. Rf8 {[%clk 0:01:21]}  e3 {[%clk 0:01:52]} 46. fxe3 {[%clk 0:01:21]}  Rxe3 {[%clk 0:01:53]} 47. Kf2 {[%clk 0:01:20]}  Rb3 {[%clk 0:01:52]} 48. Rg8 {[%clk 0:01:19]}  g5 {[%clk 0:01:50]} 49. hxg5 {[%clk 0:01:18]}  fxg5 {[%clk 0:01:51]} 50. Rc8 {[%clk 0:01:15]}  Kg4 {[%clk 0:01:49]} 51. Rc4+ {[%clk 0:01:08]}  Kh3 {[%clk 0:01:49]} 52. Rc5 {[%clk 0:01:09]}  Rxg3 {[%clk 0:01:47]} 53. Rb5 {[%clk 0:01:06]}  h4 {[%clk 0:01:47]} 54. Kf1 {[%clk 0:01:06]}  g4 {[%clk 0:01:43]} 55. Ra5 {[%clk 0:01:06]}  Kh2 {[%clk 0:01:39]} 56. Rh5 {[%clk 0:01:06]}  Rf3+ {[%clk 0:01:37]} 57. Ke2 {[%clk 0:01:05]}  h3 {[%clk 0:01:34]} 58. Rh4 {[%clk 0:01:06]}  Kg3 {[%clk 0:01:33]} 59. Rh6 {[%clk 0:01:05]}  Rf7 {[%clk 0:01:31]} 60. Ke1 {[%clk 0:01:01]}  Kg2 {[%clk 0:01:30]} 0-1


[Site "https://www.chess.com"]

[Event "Titled Tuesday Blitz August 15 Late 2023"]
[White "Avila Rodriguez, Joshua Ad"]
[Black "Beulen, Marcel"]
[WhiteFideId "5126444"]
[BlackFideId "1001450"]
[WhiteElo "2463"]
[BlackElo "2342"]
[Result "1/2-1/2"]
[Round "11"]
[TimeControl "180+1"]
[Date "2023.08.15"]
[WhiteClock "0:00:05"]
[BlackClock "0:00:06"]
[Board "75"]

1. d4 {[%clk 0:03:00]}  d5 {[%clk 0:02:59]} 2. c4 {[%clk 0:03:01]}  c6 {[%clk 0:03:00]} 3. Nf3 {[%clk 0:03:01]}  Nf6 {[%clk 0:02:59]} 4. e3 {[%clk 0:03:01]}  Bf5 {[%clk 0:02:56]} 5. Nc3 {[%clk 0:03:00]}  a6 {[%clk 0:02:56]} 6. c5 {[%clk 0:02:52]}  b6 {[%clk 0:02:47]} 7. cxb6 {[%clk 0:02:44]}  Nbd7 {[%clk 0:02:26]} 8. b7 {[%clk 0:02:40]}  Ra7 {[%clk 0:02:26]} 9. Be2 {[%clk 0:02:31]}  Qb8 {[%clk 0:02:24]} 10. O-O {[%clk 0:02:30]}  Qxb7 {[%clk 0:02:25]} 11. Na4 {[%clk 0:02:19]}  e6 {[%clk 0:02:25]} 12. Bd2 {[%clk 0:02:19]}  c5 {[%clk 0:02:21]} 13. Rc1 {[%clk 0:02:11]}  c4 {[%clk 0:01:57]} 14. b3 {[%clk 0:02:11]}  Ba3 {[%clk 0:01:56]} 15. Ra1 {[%clk 0:02:07]}  cxb3 {[%clk 0:01:33]} 16. Qxb3 {[%clk 0:02:08]}  Qxb3 {[%clk 0:01:31]} 17. axb3 {[%clk 0:02:08]}  Bd6 {[%clk 0:01:30]} 18. Rfc1 {[%clk 0:02:04]}  Ke7 {[%clk 0:01:29]} 19. Rc6 {[%clk 0:01:59]}  Rha8 {[%clk 0:01:27]} 20. Ng5 {[%clk 0:01:29]}  Nb8 {[%clk 0:01:11]} 21. Rc8 {[%clk 0:01:21]}  h6 {[%clk 0:01:10]} 22. Nf3 {[%clk 0:01:19]}  Nbd7 {[%clk 0:01:10]} 23. Rc6 {[%clk 0:01:15]}  Ne4 {[%clk 0:01:08]} 24. Be1 {[%clk 0:01:16]}  Rb8 {[%clk 0:00:54]} 25. Bd1 {[%clk 0:01:01]}  a5 {[%clk 0:00:49]} 26. Rac1 {[%clk 0:00:59]}  f6 {[%clk 0:00:43]} 27. Nd2 {[%clk 0:00:57]}  Nxd2 {[%clk 0:00:42]} 28. Bxd2 {[%clk 0:00:57]}  Bb4 {[%clk 0:00:43]} 29. Bxb4+ {[%clk 0:00:54]}  Rxb4 {[%clk 0:00:41]} 30. f3 {[%clk 0:00:54]}  Bd3 {[%clk 0:00:29]} 31. Rc7 {[%clk 0:00:51]}  Rbb7 {[%clk 0:00:25]} 32. Rc8 {[%clk 0:00:43]}  Bb5 {[%clk 0:00:24]} 33. Kf2 {[%clk 0:00:19]}  Bxa4 {[%clk 0:00:18]} 34. bxa4 {[%clk 0:00:20]}  Kd6 {[%clk 0:00:18]} 35. Kg3 {[%clk 0:00:20]}  Rc7 {[%clk 0:00:17]} 36. R1xc7 {[%clk 0:00:19]}  Rxc7 {[%clk 0:00:18]} 37. Ra8 {[%clk 0:00:17]}  Nb6 {[%clk 0:00:14]} 38. Rxa5 {[%clk 0:00:16]}  Nc4 {[%clk 0:00:12]} 39. Ra6+ {[%clk 0:00:16]}  Rc6 {[%clk 0:00:11]} 40. Rxc6+ {[%clk 0:00:15]}  Kxc6 {[%clk 0:00:12]} 41. Kf2 {[%clk 0:00:15]}  e5 {[%clk 0:00:11]} 42. dxe5 {[%clk 0:00:15]}  fxe5 {[%clk 0:00:11]} 43. Ke2 {[%clk 0:00:15]}  Kc5 {[%clk 0:00:11]} 44. Bb3 {[%clk 0:00:14]}  Na5 {[%clk 0:00:10]} 45. Bc2 {[%clk 0:00:14]}  Nc6 {[%clk 0:00:10]} 46. Bd1 {[%clk 0:00:13]}  g5 {[%clk 0:00:10]} 47. g3 {[%clk 0:00:12]}  Kc4 {[%clk 0:00:10]} 48. h4 {[%clk 0:00:12]}  Kc3 {[%clk 0:00:10]} 49. hxg5 {[%clk 0:00:11]}  hxg5 {[%clk 0:00:11]} 50. g4 {[%clk 0:00:10]}  d4 {[%clk 0:00:10]} 51. exd4 {[%clk 0:00:09]}  exd4 {[%clk 0:00:10]} 52. f4 {[%clk 0:00:09]}  gxf4 {[%clk 0:00:08]} 53. g5 {[%clk 0:00:10]}  Ne5 {[%clk 0:00:05]} 54. Kf2 {[%clk 0:00:07]}  Kb4 {[%clk 0:00:02]} 55. Kg2 {[%clk 0:00:03]}  d3 {[%clk 0:00:02]} 56. Kf2 {[%clk 0:00:04]}  Ka5 {[%clk 0:00:02]} 57. Ke1 {[%clk 0:00:03]}  Kb4 {[%clk 0:00:03]} 58. Kd2 {[%clk 0:00:04]}  Ka5 {[%clk 0:00:03]} 59. Kc3 {[%clk 0:00:04]}  f3 {[%clk 0:00:03]} 60. g6 {[%clk 0:00:02]}  f2 {[%clk 0:00:03]} 61. g7 {[%clk 0:00:02]}  f1=Q {[%clk 0:00:04]} 62. g8=Q {[%clk 0:00:03]}  Qxd1 {[%clk 0:00:03]} 63. Qa8+ {[%clk 0:00:01]}  Kb6 {[%clk 0:00:03]} 64. Qb8+ {[%clk 0:00:02]}  Kc5 {[%clk 0:00:03]} 65. Qxe5+ {[%clk 0:00:02]}  Kb6 {[%clk 0:00:03]} 66. Qd6+ {[%clk 0:00:02]}  Ka5 {[%clk 0:00:03]} 67. Qc5+ {[%clk 0:00:02]}  Ka6 {[%clk 0:00:02]} 68. Qb5+ {[%clk 0:00:03]}  Ka7 {[%clk 0:00:02]} 69. Qa5+ {[%clk 0:00:03]}  Kb7 {[%clk 0:00:02]} 70. Qb4+ {[%clk 0:00:04]}  Ka7 {[%clk 0:00:02]} 71. Kc4 {[%clk 0:00:03]}  d2 {[%clk 0:00:02]} 72. Qe7+ {[%clk 0:00:02]}  Ka6 {[%clk 0:00:02]} 73. Qd6+ {[%clk 0:00:02]}  Ka7 {[%clk 0:00:02]} 74. Qc5+ {[%clk 0:00:03]}  Kb7 {[%clk 0:00:02]} 75. Qe7+ {[%clk 0:00:03]}  Kb6 {[%clk 0:00:02]} 76. Qf6+ {[%clk 0:00:03]}  Kb7 {[%clk 0:00:02]} 77. Qg7+ {[%clk 0:00:02]}  Kb6 {[%clk 0:00:03]} 78. Qg6+ {[%clk 0:00:03]}  Kb7 {[%clk 0:00:03]} 79. Qf7+ {[%clk 0:00:02]}  Kb6 {[%clk 0:00:03]} 80. Qf6+ {[%clk 0:00:01]}  Kc7 {[%clk 0:00:03]} 81. Qe7+ {[%clk 0:00:02]}  Kc6 {[%clk 0:00:04]} 82. Qe6+ {[%clk 0:00:02]}  Kc7 {[%clk 0:00:04]} 83. Qe5+ {[%clk 0:00:03]}  Kc6 {[%clk 0:00:04]} 84. Qd5+ {[%clk 0:00:04]}  Kc7 {[%clk 0:00:04]} 85. Qc5+ {[%clk 0:00:04]}  Kd7 {[%clk 0:00:05]} 86. Qd4+ {[%clk 0:00:04]}  Kc7 {[%clk 0:00:05]} 87. Qc5+ {[%clk 0:00:04]}  Kd7 {[%clk 0:00:05]} 88. Qa7+ {[%clk 0:00:05]}  Kd6 {[%clk 0:00:05]} 89. Qb6+ {[%clk 0:00:05]}  Kd7 {[%clk 0:00:05]} 90. Qd4+ {[%clk 0:00:05]}  Kc7 {[%clk 0:00:06]} 91. Qe5+ {[%clk 0:00:04]}  Kd7 {[%clk 0:00:06]} 92. Qf5+ {[%clk 0:00:04]}  Kc7 {[%clk 0:00:06]} 93. Qf7+ {[%clk 0:00:04]}  Kc6 {[%clk 0:00:06]} 94. Qf6+ {[%clk 0:00:05]}  Kc7 {[%clk 0:00:06]} 95. Qf4+ {[%clk 0:00:05]}  Kd7 {[%clk 0:00:06]} 96. Qf5+ {[%clk 0:00:05]}  Kc7 {[%clk 0:00:06]} 97. Qe5+ {[%clk 0:00:05]} 1/2-1/2


[Site "https://www.chess.com"]

[Event "Titled Tuesday Blitz August 15 Late 2023"]
[White "Womacka, Mathias"]
[Black "Stachanczyk, Jacek"]
[WhiteFideId "4611390"]
[BlackFideId "1116657"]
[WhiteElo "2450"]
[BlackElo "2340"]
[Result "1-0"]
[Round "11"]
[TimeControl "180+1"]
[Date "2023.08.15"]
[WhiteClock "0:00:41"]
[BlackClock "0:01:52"]
[Board "76"]

1. e4 {[%clk 0:02:58]}  c6 {[%clk 0:02:58]} 2. d4 {[%clk 0:02:57]}  d5 {[%clk 0:02:58]} 3. Nd2 {[%clk 0:02:58]}  dxe4 {[%clk 0:02:57]} 4. Nxe4 {[%clk 0:02:59]}  Bf5 {[%clk 0:02:57]} 5. Ng3 {[%clk 0:02:58]}  Bg6 {[%clk 0:02:57]} 6. h4 {[%clk 0:02:58]}  h6 {[%clk 0:02:56]} 7. Nf3 {[%clk 0:02:57]}  Nf6 {[%clk 0:02:54]} 8. Ne5 {[%clk 0:02:56]}  Bh7 {[%clk 0:02:54]} 9. Bd3 {[%clk 0:02:56]}  Bxd3 {[%clk 0:02:53]} 10. Qxd3 {[%clk 0:02:57]}  Nbd7 {[%clk 0:02:54]} 11. f4 {[%clk 0:02:56]}  e6 {[%clk 0:02:53]} 12. Bd2 {[%clk 0:02:56]}  Be7 {[%clk 0:02:49]} 13. O-O-O {[%clk 0:02:54]}  Nxe5 {[%clk 0:02:41]} 14. fxe5 {[%clk 0:02:52]}  Nd7 {[%clk 0:02:37]} 15. Ne4 {[%clk 0:02:32]}  Qc7 {[%clk 0:02:22]} 16. Qg3 {[%clk 0:02:27]}  g6 {[%clk 0:02:15]} 17. Rhf1 {[%clk 0:02:20]}  Rh7 {[%clk 0:02:12]} 18. c4 {[%clk 0:02:03]}  O-O-O {[%clk 0:02:09]} 19. c5 {[%clk 0:02:02]}  Kb8 {[%clk 0:02:07]} 20. Rf3 {[%clk 0:01:57]}  f5 {[%clk 0:02:05]} 21. exf6 {[%clk 0:01:47]}  Qxg3 {[%clk 0:02:03]} 22. Rxg3 {[%clk 0:01:46]}  Nxf6 {[%clk 0:02:03]} 23. Nxf6 {[%clk 0:01:42]}  Bxf6 {[%clk 0:02:04]} 24. Rxg6 {[%clk 0:01:42]}  Bxd4 {[%clk 0:02:04]} 25. Rxe6 {[%clk 0:01:26]}  Rg7 {[%clk 0:02:00]} 26. g3 {[%clk 0:00:42]}  Rxg3 {[%clk 0:01:52]} 27. Bf4+ {[%clk 0:00:41]} 1-0


[Site "https://www.chess.com"]

[Event "Titled Tuesday Blitz August 15 Late 2023"]
[White "Kujawski, Adam"]
[Black "dr_tatiana"]
[WhiteFideId "1100920"]
[WhiteElo "2335"]
[BlackElo "2435"]
[Result "1-0"]
[Round "11"]
[TimeControl "180+1"]
[Date "2023.08.15"]
[WhiteClock "0:00:03"]
[BlackClock "0:00:04"]
[Board "77"]

1. d4 {[%clk 0:02:55]}  d5 {[%clk 0:02:54]} 2. Bf4 {[%clk 0:02:55]}  Nf6 {[%clk 0:02:54]} 3. e3 {[%clk 0:02:55]}  c6 {[%clk 0:02:51]} 4. Nd2 {[%clk 0:02:50]}  Qb6 {[%clk 0:02:47]} 5. Qc1 {[%clk 0:02:41]}  Bf5 {[%clk 0:02:45]} 6. Ngf3 {[%clk 0:02:39]}  e6 {[%clk 0:02:43]} 7. Be2 {[%clk 0:02:35]}  Nbd7 {[%clk 0:02:42]} 8. O-O {[%clk 0:02:34]}  c5 {[%clk 0:02:42]} 9. c3 {[%clk 0:02:24]}  Rc8 {[%clk 0:02:41]} 10. Bd1 {[%clk 0:02:23]}  Bd6 {[%clk 0:02:39]} 11. Bxd6 {[%clk 0:02:19]}  Qxd6 {[%clk 0:02:40]} 12. Bc2 {[%clk 0:02:18]}  Ne4 {[%clk 0:02:31]} 13. Nxe4 {[%clk 0:02:10]}  dxe4 {[%clk 0:02:20]} 14. Nd2 {[%clk 0:02:09]}  Nf6 {[%clk 0:02:20]} 15. f3 {[%clk 0:02:05]}  exf3 {[%clk 0:02:07]} 16. Nxf3 {[%clk 0:02:04]}  Bxc2 {[%clk 0:02:04]} 17. Qxc2 {[%clk 0:02:04]}  O-O {[%clk 0:02:05]} 18. Rae1 {[%clk 0:01:58]}  Rfd8 {[%clk 0:01:52]} 19. e4 {[%clk 0:01:52]}  Qb6 {[%clk 0:01:14]} 20. e5 {[%clk 0:01:48]}  Nd5 {[%clk 0:01:04]} 21. Ng5 {[%clk 0:01:45]}  g6 {[%clk 0:00:56]} 22. Qf2 {[%clk 0:00:53]}  Rd7 {[%clk 0:00:50]} 23. c4 {[%clk 0:00:30]}  Nb4 {[%clk 0:00:47]} 24. Nxf7 {[%clk 0:00:22]}  cxd4 {[%clk 0:00:28]} 25. Nh6+ {[%clk 0:00:17]}  Kg7 {[%clk 0:00:23]} 26. Qf6+ {[%clk 0:00:10]}  Kxh6 {[%clk 0:00:23]} 27. Re4 {[%clk 0:00:05]}  d3+ {[%clk 0:00:20]} 28. Kh1 {[%clk 0:00:05]}  Rd4 {[%clk 0:00:20]} 29. Qh4+ {[%clk 0:00:04]}  Kg7 {[%clk 0:00:20]} 30. Rxd4 {[%clk 0:00:04]}  Rc7 {[%clk 0:00:08]} 31. Qf6+ {[%clk 0:00:03]}  Kg8 {[%clk 0:00:04]} 32. Qf8# {[%clk 0:00:03]} 1-0


[Site "https://www.chess.com"]

[Event "Titled Tuesday Blitz August 15 Late 2023"]
[White "Buchenau, Frank"]
[Black "Harish, Neeraj"]
[WhiteFideId "4604350"]
[BlackFideId "30958130"]
[WhiteElo "2431"]
[BlackElo "2330"]
[Result "0-1"]
[Round "11"]
[TimeControl "180+1"]
[Date "2023.08.15"]
[WhiteClock "0:01:02"]
[BlackClock "0:02:04"]
[Board "78"]

1. e4 {[%clk 0:03:00]}  c6 {[%clk 0:02:58]} 2. Nf3 {[%clk 0:02:59]}  d5 {[%clk 0:02:55]} 3. d3 {[%clk 0:02:57]}  dxe4 {[%clk 0:02:54]} 4. dxe4 {[%clk 0:02:57]}  Qxd1+ {[%clk 0:02:55]} 5. Kxd1 {[%clk 0:02:57]}  Nf6 {[%clk 0:02:56]} 6. Bd3 {[%clk 0:02:52]}  Nbd7 {[%clk 0:02:52]} 7. Ke2 {[%clk 0:02:45]}  Nc5 {[%clk 0:02:50]} 8. Nc3 {[%clk 0:02:39]}  Nfd7 {[%clk 0:02:49]} 9. e5 {[%clk 0:02:33]}  g6 {[%clk 0:02:40]} 10. Bf4 {[%clk 0:02:31]}  Bg7 {[%clk 0:02:40]} 11. Rhe1 {[%clk 0:02:22]}  O-O {[%clk 0:02:39]} 12. Rad1 {[%clk 0:02:20]}  Ne6 {[%clk 0:02:33]} 13. Bg3 {[%clk 0:02:17]}  Ndc5 {[%clk 0:02:34]} 14. Ne4 {[%clk 0:02:10]}  Nxd3 {[%clk 0:02:32]} 15. Rxd3 {[%clk 0:02:08]}  b6 {[%clk 0:02:32]} 16. Kd1 {[%clk 0:01:55]}  Ba6 {[%clk 0:02:30]} 17. Rd2 {[%clk 0:01:53]}  Rad8 {[%clk 0:02:31]} 18. Kc1 {[%clk 0:01:48]}  Rxd2 {[%clk 0:02:30]} 19. Nexd2 {[%clk 0:01:47]}  Rd8 {[%clk 0:02:31]} 20. Ne4 {[%clk 0:01:40]}  Kf8 {[%clk 0:02:26]} 21. Rd1 {[%clk 0:01:39]}  Ke8 {[%clk 0:02:25]} 22. Rxd8+ {[%clk 0:01:38]}  Kxd8 {[%clk 0:02:26]} 23. Nfg5 {[%clk 0:01:36]}  Bh6 {[%clk 0:02:16]} 24. h4 {[%clk 0:01:25]}  f6 {[%clk 0:02:04]} 25. exf6 {[%clk 0:01:23]}  exf6 {[%clk 0:02:04]} 26. Nxf6 {[%clk 0:01:21]}  Nxg5 {[%clk 0:02:04]} 27. Ng4 {[%clk 0:01:02]}  Nf7+ {[%clk 0:02:04]} 0-1


[Site "https://www.chess.com"]

[Event "Titled Tuesday Blitz August 15 Late 2023"]
[White "MrAnnihilation"]
[Black "Shapiro, Daniel"]
[BlackFideId "2001780"]
[WhiteElo "2417"]
[BlackElo "2301"]
[Result "1-0"]
[Round "11"]
[TimeControl "180+1"]
[Date "2023.08.15"]
[WhiteClock "0:00:43"]
[BlackClock "0:00:00"]
[Board "80"]

1. e4 {[%clk 0:03:00]}  c5 {[%clk 0:03:00]} 2. Nf3 {[%clk 0:03:01]}  Nc6 {[%clk 0:02:57]} 3. Bb5 {[%clk 0:03:01]}  d6 {[%clk 0:02:56]} 4. Bxc6+ {[%clk 0:03:01]}  bxc6 {[%clk 0:02:56]} 5. e5 {[%clk 0:03:02]}  d5 {[%clk 0:02:51]} 6. h3 {[%clk 0:03:02]}  e6 {[%clk 0:02:51]} 7. O-O {[%clk 0:03:01]}  Ne7 {[%clk 0:02:51]} 8. d3 {[%clk 0:03:01]}  Ng6 {[%clk 0:02:51]} 9. Re1 {[%clk 0:03:01]}  Be7 {[%clk 0:02:50]} 10. c4 {[%clk 0:03:00]}  O-O {[%clk 0:02:48]} 11. Nc3 {[%clk 0:03:00]}  Qc7 {[%clk 0:02:41]} 12. b3 {[%clk 0:02:57]}  Bd7 {[%clk 0:02:31]} 13. Na4 {[%clk 0:02:54]}  f6 {[%clk 0:02:23]} 14. Bb2 {[%clk 0:02:44]}  Rf7 {[%clk 0:01:58]} 15. Rc1 {[%clk 0:02:38]}  d4 {[%clk 0:01:53]} 16. Rc2 {[%clk 0:02:23]}  Raf8 {[%clk 0:01:52]} 17. Ba3 {[%clk 0:02:21]}  fxe5 {[%clk 0:01:35]} 18. Bxc5 {[%clk 0:02:16]}  Rxf3 {[%clk 0:01:29]} 19. gxf3 {[%clk 0:02:15]}  Nh4 {[%clk 0:01:29]} 20. Bxe7 {[%clk 0:02:11]}  Nxf3+ {[%clk 0:01:27]} 21. Kf1 {[%clk 0:02:08]}  Rf7 {[%clk 0:01:15]} 22. Re4 {[%clk 0:01:57]}  c5 {[%clk 0:01:05]} 23. Bh4 {[%clk 0:01:19]}  Bc6 {[%clk 0:00:50]} 24. Rce2 {[%clk 0:01:16]}  Bxe4 {[%clk 0:00:27]} 25. Rxe4 {[%clk 0:01:16]}  Rf5 {[%clk 0:00:27]} 26. Bg3 {[%clk 0:01:13]}  Qf7 {[%clk 0:00:27]} 27. Kg2 {[%clk 0:01:12]}  Qh5 {[%clk 0:00:24]} 28. Nxc5 {[%clk 0:01:10]}  Nh4+ {[%clk 0:00:23]} 29. Bxh4 {[%clk 0:01:01]}  Qxd1 {[%clk 0:00:23]} 30. Bg3 {[%clk 0:01:02]}  Qd2 {[%clk 0:00:18]} 31. a3 {[%clk 0:01:00]}  Qc1 {[%clk 0:00:17]} 32. b4 {[%clk 0:01:00]}  Qxa3 {[%clk 0:00:17]} 33. Nxe6 {[%clk 0:00:59]}  Qxb4 {[%clk 0:00:15]} 34. Bxe5 {[%clk 0:00:53]}  a5 {[%clk 0:00:12]} 35. Nxg7 {[%clk 0:00:52]}  Rg5+ {[%clk 0:00:11]} 36. Rg4 {[%clk 0:00:50]}  Rxg4+ {[%clk 0:00:11]} 37. hxg4 {[%clk 0:00:51]}  a4 {[%clk 0:00:11]} 38. Nf5 {[%clk 0:00:51]}  Qb7+ {[%clk 0:00:08]} 39. Kg3 {[%clk 0:00:51]}  a3 {[%clk 0:00:08]} 40. Bxd4 {[%clk 0:00:47]}  a2 {[%clk 0:00:07]} 41. Nd6 {[%clk 0:00:45]}  Qc7 {[%clk 0:00:07]} 42. c5 {[%clk 0:00:45]}  Qa5 {[%clk 0:00:07]} 43. Nc4 {[%clk 0:00:45]}  a1=Q {[%clk 0:00:06]} 44. Bxa1 {[%clk 0:00:44]}  Qxa1 {[%clk 0:00:06]} 45. c6 {[%clk 0:00:41]}  Qa6 {[%clk 0:00:06]} 46. Ne5 {[%clk 0:00:41]}  Qc8 {[%clk 0:00:05]} 47. f4 {[%clk 0:00:42]}  Qc7 {[%clk 0:00:05]} 48. Kf3 {[%clk 0:00:42]}  Kf8 {[%clk 0:00:05]} 49. Ke4 {[%clk 0:00:43]}  Ke7 {[%clk 0:00:05]} 50. g5 {[%clk 0:00:43]}  Kd6 {[%clk 0:00:05]} 51. f5 {[%clk 0:00:41]}  Qe7 {[%clk 0:00:04]} 52. d4 {[%clk 0:00:41]}  Qxg5 {[%clk 0:00:04]} 53. Nf7+ {[%clk 0:00:41]}  Kxc6 {[%clk 0:00:05]} 54. Nxg5 {[%clk 0:00:42]}  Kd7 {[%clk 0:00:05]} 55. Nxh7 {[%clk 0:00:43]}  Kd6 {[%clk 0:00:06]} 56. Nf6 {[%clk 0:00:43]}  Ke7 {[%clk 0:00:00]} 57. Ke5 {[%clk 0:00:43]} 1-0


[Site "https://www.chess.com"]

[Event "Titled Tuesday Blitz August 15 Late 2023"]
[White "Kula, Robert"]
[Black "financieru"]
[WhiteFideId "1101218"]
[WhiteElo "2282"]
[BlackElo "2409"]
[Result "1-0"]
[Round "11"]
[TimeControl "180+1"]
[Date "2023.08.15"]
[WhiteClock "0:00:10"]
[BlackClock "0:00:11"]
[Board "81"]

1. e4 {[%clk 0:03:00]}  c5 {[%clk 0:02:59]} 2. c4 {[%clk 0:02:59]}  e6 {[%clk 0:02:59]} 3. Nc3 {[%clk 0:03:00]}  d6 {[%clk 0:02:59]} 4. d3 {[%clk 0:03:00]}  Nc6 {[%clk 0:02:59]} 5. f4 {[%clk 0:02:59]}  g6 {[%clk 0:02:59]} 6. Nf3 {[%clk 0:02:59]}  Bg7 {[%clk 0:03:00]} 7. Be2 {[%clk 0:02:58]}  Nge7 {[%clk 0:03:01]} 8. O-O {[%clk 0:02:58]}  O-O {[%clk 0:03:01]} 9. Be3 {[%clk 0:02:58]}  Nd4 {[%clk 0:02:59]} 10. Bf2 {[%clk 0:02:41]}  f5 {[%clk 0:02:53]} 11. Nxd4 {[%clk 0:02:40]}  cxd4 {[%clk 0:02:49]} 12. Nb5 {[%clk 0:02:38]}  e5 {[%clk 0:02:47]} 13. exf5 {[%clk 0:02:04]}  gxf5 {[%clk 0:02:44]} 14. fxe5 {[%clk 0:02:01]}  dxe5 {[%clk 0:02:45]} 15. Bf3 {[%clk 0:02:01]}  a6 {[%clk 0:02:42]} 16. Na3 {[%clk 0:02:01]}  Rb8 {[%clk 0:02:29]} 17. Re1 {[%clk 0:01:57]}  Ng6 {[%clk 0:02:28]} 18. Bd5+ {[%clk 0:01:53]}  Kh8 {[%clk 0:02:28]} 19. Nc2 {[%clk 0:01:44]}  Bd7 {[%clk 0:02:22]} 20. Qf3 {[%clk 0:01:35]}  Nf4 {[%clk 0:02:14]} 21. Bg3 {[%clk 0:01:20]}  Nxd5 {[%clk 0:01:54]} 22. cxd5 {[%clk 0:01:06]}  Rc8 {[%clk 0:01:26]} 23. Na3 {[%clk 0:00:56]}  f4 {[%clk 0:01:02]} 24. Bf2 {[%clk 0:00:55]}  b5 {[%clk 0:01:03]} 25. Rac1 {[%clk 0:00:53]}  Bf5 {[%clk 0:01:03]} 26. Nc2 {[%clk 0:00:42]}  a5 {[%clk 0:00:56]} 27. Na3 {[%clk 0:00:28]}  Qd7 {[%clk 0:00:56]} 28. Rc6 {[%clk 0:00:24]}  b4 {[%clk 0:00:26]} 29. Nc4 {[%clk 0:00:23]}  Rxc6 {[%clk 0:00:25]} 30. dxc6 {[%clk 0:00:23]}  Qc8 {[%clk 0:00:25]} 31. Nxe5 {[%clk 0:00:22]}  Re8 {[%clk 0:00:23]} 32. Bxd4 {[%clk 0:00:21]}  Kg8 {[%clk 0:00:20]} 33. Qd5+ {[%clk 0:00:21]}  Be6 {[%clk 0:00:21]} 34. Qd7 {[%clk 0:00:19]}  Rd8 {[%clk 0:00:16]} 35. Qa7 {[%clk 0:00:17]}  Rxd4 {[%clk 0:00:15]} 36. Qxd4 {[%clk 0:00:16]}  Qc7 {[%clk 0:00:12]} 37. Kf1 {[%clk 0:00:15]}  f3 {[%clk 0:00:12]} 38. gxf3 {[%clk 0:00:13]}  Bh3+ {[%clk 0:00:12]} 39. Kf2 {[%clk 0:00:13]}  h5 {[%clk 0:00:12]} 40. Rg1 {[%clk 0:00:13]}  Kh8 {[%clk 0:00:12]} 41. Rxg7 {[%clk 0:00:12]}  Kxg7 {[%clk 0:00:12]} 42. Nd7+ {[%clk 0:00:10]}  Kf7 {[%clk 0:00:12]} 43. Qf6+ {[%clk 0:00:10]}  Kg8 {[%clk 0:00:11]} 44. Qg6+ {[%clk 0:00:06]}  Kh8 {[%clk 0:00:11]} 45. Qxh5+ {[%clk 0:00:06]}  Kg7 {[%clk 0:00:11]} 46. Qg5+ {[%clk 0:00:05]}  Kf7 {[%clk 0:00:11]} 47. Qf6+ {[%clk 0:00:05]}  Kg8 {[%clk 0:00:11]} 48. Qf8+ {[%clk 0:00:05]}  Kh7 {[%clk 0:00:11]} 49. Qe7+ {[%clk 0:00:05]}  Kh6 {[%clk 0:00:11]} 50. Qh4+ {[%clk 0:00:04]}  Kg7 {[%clk 0:00:11]} 51. Qxh3 {[%clk 0:00:05]}  Qxc6 {[%clk 0:00:10]} 52. Qg4+ {[%clk 0:00:05]}  Kh8 {[%clk 0:00:09]} 53. Ne5 {[%clk 0:00:05]}  Qc2+ {[%clk 0:00:07]} 54. Kg3 {[%clk 0:00:05]}  Qc7 {[%clk 0:00:08]} 55. Kf4 {[%clk 0:00:02]}  Qc5 {[%clk 0:00:06]} 56. Nf7+ {[%clk 0:00:02]}  Kh7 {[%clk 0:00:06]} 57. Ng5+ {[%clk 0:00:02]}  Kg6 {[%clk 0:00:06]} 58. Ne6+ {[%clk 0:00:03]}  Kf7 {[%clk 0:00:07]} 59. Nxc5 {[%clk 0:00:03]}  b3 {[%clk 0:00:07]} 60. Nxb3 {[%clk 0:00:04]}  a4 {[%clk 0:00:07]} 61. Nc5 {[%clk 0:00:04]}  a3 {[%clk 0:00:08]} 62. bxa3 {[%clk 0:00:05]}  Kf6 {[%clk 0:00:08]} 63. Ke4 {[%clk 0:00:05]}  Kf7 {[%clk 0:00:08]} 64. Kd5 {[%clk 0:00:06]}  Kf6 {[%clk 0:00:08]} 65. Kd6 {[%clk 0:00:07]}  Kf7 {[%clk 0:00:08]} 66. Qf4+ {[%clk 0:00:08]}  Kg6 {[%clk 0:00:09]} 67. Ke7 {[%clk 0:00:08]}  Kh5 {[%clk 0:00:09]} 68. Qg3 {[%clk 0:00:09]}  Kh6 {[%clk 0:00:10]} 69. Kf6 {[%clk 0:00:09]}  Kh7 {[%clk 0:00:11]} 70. Qg7# {[%clk 0:00:10]} 1-0


[Site "https://www.chess.com"]